[Event "Nordstansblixten 2025"]
[Site "Nordstan, Göteborg, Sweden"]
[Date "2025.05.10"]
[Round "5.1"]
[White "Andersson, Stig"]
[Black "Torres, Lucas"]
[Result "0-1"]
[TimeControl "3 minutes + 2 seconds per move from move one"]
[WhiteFideId "1731971"]
[BlackFideId "1769464"]
[WhiteElo "1837"]
[BlackElo "1805"]

1. e4 {[%clk 00:03:01]} {[%emt 00:00:03]} e6 {[%clk 00:03:02]} {[%emt
00:00:03]} 2. d4 {[%clk 00:02:54]} {[%emt 00:00:08]} d5 {[%clk 00:03:04]} 3.
Nd2 {[%clk 00:02:51]} {[%emt 00:00:05]} Nf6 {[%clk 00:03:04]} {[%emt 00:00:02]}
4. e5 {[%clk 00:02:50]} {[%emt 00:00:02]} Nfd7 {[%clk 00:03:05]} 5. Bd3 {[%clk
00:02:44]} {[%emt 00:00:08]} c5 {[%clk 00:03:06]} 6. c3 {[%clk 00:02:45]} Nc6
{[%clk 00:03:08]} 7. Ne2 {[%clk 00:02:40]} {[%emt 00:00:06]} Be7 {[%clk
00:03:04]} {[%emt 00:00:06]} 8. O-O {[%clk 00:02:39]} {[%emt 00:00:03]} Qb6
{[%clk 00:02:58]} {[%emt 00:00:10]} 9. a3 {[%clk 00:02:28]} {[%emt 00:00:12]}
cxd4 {[%clk 00:02:35]} {[%emt 00:00:25]} 10. cxd4 {[%clk 00:02:25]} {[%emt
00:00:04]} Nxd4 {[%clk 00:02:22]} {[%emt 00:00:15]} 11. Nxd4 {[%clk 00:02:24]}
{[%emt 00:00:04]} Qxd4 {[%clk 00:02:23]} 12. Nf3 {[%clk 00:02:23]} {[%emt
00:00:02]} Qb6 {[%clk 00:02:24]} {[%emt 00:00:01]} 13. Qc2 {[%clk 00:02:07]}
{[%emt 00:00:18]} h6 {[%clk 00:01:44]} {[%emt 00:00:43]} 14. Be3 {[%clk
00:01:40]} {[%emt 00:00:29]} Qd8 {[%clk 00:01:35]} {[%emt 00:00:10]} 15. Rac1
{[%clk 00:01:37]} {[%emt 00:00:06]} Nb6 {[%clk 00:00:38]} {[%emt 00:00:59]} 16.
h3 {[%clk 00:01:18]} {[%emt 00:00:20]} Bd7 {[%clk 00:00:37]} {[%emt 00:00:03]}
17. Qc7 {[%clk 00:01:16]} {[%emt 00:00:03]} Qxc7 {[%clk 00:00:17]} {[%emt
00:00:23]} 18. Rxc7 {[%clk 00:01:16]} {[%emt 00:00:02]} Bd8 {[%clk 00:00:15]}
{[%emt 00:00:05]} 19. Rc2 {[%clk 00:01:02]} {[%emt 00:00:15]} O-O {[%clk
00:00:13]} {[%emt 00:00:04]} 20. Rfc1 {[%clk 00:01:01]} {[%emt 00:00:03]} Be7
{[%clk 00:00:15]} 21. b4 {[%clk 00:01:00]} {[%emt 00:00:02]} Rac8 {[%clk
00:00:15]} {[%emt 00:00:02]} 22. Kf1 {[%clk 00:00:59]} {[%emt 00:00:03]} Rxc2
{[%clk 00:00:17]} 23. Rxc2 {[%clk 00:01:00]} Rc8 {[%clk 00:00:18]} 24. Rxc8+
{[%clk 00:00:55]} {[%emt 00:00:06]} Bxc8 {[%clk 00:00:18]} {[%emt 00:00:02]} 25.
Nd4 {[%clk 00:00:52]} {[%emt 00:00:05]} Bd7 {[%clk 00:00:19]} {[%emt 00:00:01]}
26. Nb5 {[%clk 00:00:50]} {[%emt 00:00:03]} Nc4 {[%clk 00:00:18]} {[%emt
00:00:04]} 27. Bxc4 {[%clk 00:00:48]} {[%emt 00:00:04]} dxc4 {[%emt 00:00:02]}
28. Nxa7 {[%clk 00:00:48]} {[%emt 00:00:01]} Bd8 {[%clk 00:00:17]} {[%emt
00:00:04]} 29. Ke2 {[%clk 00:00:48]} {[%emt 00:00:02]} Kf8 {[%clk 00:00:18]} 30.
Kd2 {[%clk 00:00:45]} {[%emt 00:00:04]} b6 {[%clk 00:00:19]} {[%emt 00:00:01]}
31. Kc3 {[%clk 00:00:44]} {[%emt 00:00:03]} b5 {[%clk 00:00:20]} 32. Bc5+
{[%clk 00:00:41]} {[%emt 00:00:05]} Ke8 {[%clk 00:00:20]} {[%emt 00:00:02]} 33.
f3 {[%clk 00:00:37]} {[%emt 00:00:05]} Bc7 {[%clk 00:00:22]} 34. a4 {[%clk
00:00:37]} {[%emt 00:00:02]} Bxe5+ {[%clk 00:00:22]} {[%emt 00:00:02]} 35. Kc2
{[%clk 00:00:35]} {[%emt 00:00:03]} bxa4 {[%clk 00:00:23]} {[%emt 00:00:02]} 36.
b5 {[%clk 00:00:32]} {[%emt 00:00:05]} a3 {[%clk 00:00:17]} {[%emt 00:00:07]}
37. Bxa3 {[%clk 00:00:32]} {[%emt 00:00:02]} Bb8 {[%clk 00:00:18]} {[%emt
00:00:02]} 38. Bc5 {[%clk 00:00:32]} {[%emt 00:00:02]} Bxa7 {[%clk 00:00:17]}
{[%emt 00:00:02]} 39. Bxa7 {[%clk 00:00:33]} {[%emt 00:00:02]} Bxb5 {[%clk
00:00:18]} {[%emt 00:00:01]} 40. Kc3 {[%clk 00:00:33]} Kd7 {[%clk 00:00:16]}
{[%emt 00:00:04]} 41. Bd4 {[%clk 00:00:32]} {[%emt 00:00:03]} f6 {[%clk
00:00:15]} {[%emt 00:00:02]} 42. Bc5 {[%clk 00:00:33]} {[%emt 00:00:01]} Ke8
{[%clk 00:00:13]} {[%emt 00:00:04]} 43. Bd4 {[%clk 00:00:32]} {[%emt 00:00:03]}
Kf7 {[%clk 00:00:14]} {[%emt 00:00:02]} 44. Kb4 {[%clk 00:00:33]} {[%emt
00:00:01]} Ba6 {[%clk 00:00:15]} 45. Bc3 {[%clk 00:00:34]} e5 {[%clk 00:00:16]}
{[%emt 00:00:01]} 46. Ka5 {[%clk 00:00:34]} {[%emt 00:00:02]} Bb7 {[%clk
00:00:17]} 47. Kb6 {[%clk 00:00:35]} {[%emt 00:00:01]} Bd5 {[%clk 00:00:17]}
{[%emt 00:00:01]} 48. Kc5 {[%clk 00:00:36]} {[%emt 00:00:02]} Ke6 {[%clk
00:00:19]} 49. Bd2 {[%clk 00:00:33]} {[%emt 00:00:05]} f5 {[%clk 00:00:16]}
{[%emt 00:00:04]} 50. Bc3 {[%clk 00:00:33]} {[%emt 00:00:02]} g5 {[%clk
00:00:15]} {[%emt 00:00:04]} 51. Kb6 {[%clk 00:00:33]} {[%emt 00:00:02]} e4
{[%clk 00:00:16]} 52. fxe4 {[%clk 00:00:34]} {[%emt 00:00:02]} fxe4 {[%clk
00:00:17]} 53. Kc5 {[%clk 00:00:35]} {[%emt 00:00:01]} e3 {[%clk 00:00:15]}
{[%emt 00:00:04]} 54. Kd4 {[%clk 00:00:34]} {[%emt 00:00:02]} Bxg2 {[%clk
00:00:15]} {[%emt 00:00:02]} 55. h4 {[%clk 00:00:31]} {[%emt 00:00:05]} gxh4
{[%clk 00:00:16]} {[%emt 00:00:02]} 56. Kxe3 {[%clk 00:00:32]} {[%emt
00:00:01]} h3 {[%clk 00:00:12]} {[%emt 00:00:06]} 57. Kf2 {[%clk 00:00:33]} Kf5
{[%clk 00:00:12]} 58. Kg3 {[%clk 00:00:33]} {[%emt 00:00:02]} Ke4 {[%clk
00:00:13]} 59. Ba5 {[%clk 00:00:33]} {[%emt 00:00:03]} Kd3 {[%clk 00:00:14]}
0-1

[Event "Nordstansblixten 2025"]
[Site "Nordstan, Göteborg, Sweden"]
[Date "2025.05.10"]
[Round "5.2"]
[White "Olivius, Sten"]
[Black "Kenani, Dariush"]
[Result "1/2-1/2"]
[TimeControl "3 minutes + 2 seconds per move from move one"]
[WhiteFideId "1788728"]
[BlackFideId "1707973"]
[WhiteElo "1874"]
[BlackElo "1933"]

1. e4 {[%clk 00:03:02]} c5 {[%clk 00:03:02]} {[%emt 00:00:03]} 2. Nc3 {[%clk
00:03:03]} {[%emt 00:00:02]} Nc6 {[%clk 00:03:01]} {[%emt 00:00:03]} 3. Nf3
{[%clk 00:03:02]} {[%emt 00:00:02]} a6 {[%clk 00:02:56]} {[%emt 00:00:08]} 4.
a4 {[%clk 00:03:01]} {[%emt 00:00:03]} Nf6 {[%clk 00:02:50]} {[%emt 00:00:08]}
5. Bc4 {[%clk 00:02:55]} {[%emt 00:00:07]} e6 {[%clk 00:02:50]} {[%emt
00:00:03]} 6. d3 {[%clk 00:02:54]} {[%emt 00:00:03]} Be7 {[%clk 00:02:50]}
{[%emt 00:00:02]} 7. h3 {[%clk 00:02:51]} {[%emt 00:00:05]} d5 {[%clk
00:02:43]} {[%emt 00:00:09]} 8. exd5 {[%clk 00:02:51]} {[%emt 00:00:03]} exd5
{[%clk 00:02:43]} {[%emt 00:00:01]} 9. Bb3 {[%clk 00:02:51]} {[%emt 00:00:02]}
h6 {[%clk 00:02:29]} {[%emt 00:00:17]} 10. O-O {[%clk 00:02:47]} {[%emt
00:00:06]} Be6 {[%clk 00:02:29]} {[%emt 00:00:02]} 11. Re1 {[%clk 00:02:44]}
{[%emt 00:00:05]} Qd6 {[%clk 00:02:17]} {[%emt 00:00:14]} 12. Qe2 {[%clk
00:02:29]} {[%emt 00:00:18]} O-O {[%emt 00:00:09]} 13. Ne5 {[%clk 00:02:19]}
{[%emt 00:00:10]} Rfe8 {[%clk 00:01:57]} {[%emt 00:00:17]} 14. Nxc6 {[%clk
00:02:06]} {[%emt 00:00:15]} Qxc6 {[%clk 00:01:55]} {[%emt 00:00:04]} 15. Qf3
{[%clk 00:02:04]} {[%emt 00:00:03]} Rad8 {[%clk 00:01:41]} {[%emt 00:00:16]} 16.
Bf4 {[%clk 00:01:59]} {[%emt 00:00:07]} b5 {[%emt 00:00:40]} 17. axb5 {[%clk
00:01:43]} axb5 {[%clk 00:01:23]} {[%emt 00:00:01]} 18. Be5 {[%clk 00:01:30]}
{[%emt 00:00:14]} Nd7 {[%clk 00:01:14]} {[%emt 00:00:11]} 19. Bf4 {[%clk
00:01:18]} {[%emt 00:00:13]} Nf6 {[%clk 00:01:15]} {[%emt 00:00:02]} 20. Be5
{[%clk 00:01:09]} {[%emt 00:00:18]} Nd7 {[%clk 00:01:16]} 21. Bg3 {[%clk
00:01:09]} Nf6 {[%clk 00:01:11]} {[%emt 00:00:03]} 22. Re5 {[%clk 00:00:51]}
{[%emt 00:00:20]} Bd6 {[%clk 00:01:02]} {[%emt 00:00:11]} 23. Ree1 {[%clk
00:00:38]} {[%emt 00:00:15]} Bxg3 {[%clk 00:01:01]} {[%emt 00:00:03]} 24. Qxg3
{[%clk 00:00:38]} {[%emt 00:00:02]} d4 {[%clk 00:00:53]} {[%emt 00:00:10]} 25.
Bxe6 {[%clk 00:00:37]} {[%emt 00:00:04]} Rxe6 {[%clk 00:00:52]} {[%emt
00:00:02]} 26. Rxe6 {[%clk 00:00:26]} {[%emt 00:00:12]} fxe6 {[%clk 00:00:52]}
{[%emt 00:00:03]} 27. Ne2 {[%clk 00:00:20]} {[%emt 00:00:08]} Qd6 {[%clk
00:00:47]} {[%emt 00:00:08]} 28. Qxd6 {[%clk 00:00:19]} {[%emt 00:00:02]} Rxd6
{[%clk 00:00:48]} {[%emt 00:00:01]} 29. f3 {[%clk 00:00:11]} {[%emt 00:00:10]}
Nd5 {[%clk 00:00:47]} {[%emt 00:00:03]} 30. Kf2 {[%clk 00:00:09]} {[%emt
00:00:03]} Ne3 {[%clk 00:00:44]} {[%emt 00:00:06]} 31. Rc1 {[%clk 00:00:07]}
{[%emt 00:00:04]} e5 {[%clk 00:00:44]} {[%emt 00:00:03]} 32. c3 {[%clk
00:00:06]} {[%emt 00:00:02]} Rd8 {[%clk 00:00:38]} {[%emt 00:00:08]} 33. cxd4
{[%clk 00:00:06]} {[%emt 00:00:02]} cxd4 {[%clk 00:00:39]} 34. Rc5 {[%clk
00:00:07]} {[%emt 00:00:01]} Rd5 {[%clk 00:00:38]} {[%emt 00:00:03]} 35. Rxd5
{[%clk 00:00:08]} Nxd5 {[%clk 00:00:39]} 36. Nc1 {[%clk 00:00:07]} {[%emt
00:00:03]} Kf7 {[%clk 00:00:38]} {[%emt 00:00:03]} 37. g4 {[%clk 00:00:07]}
{[%emt 00:00:02]} g5 {[%clk 00:00:38]} {[%emt 00:00:02]} 38. Kg3 {[%clk
00:00:07]} {[%emt 00:00:02]} Ne3 {[%clk 00:00:37]} {[%emt 00:00:03]} 39. h4
{[%clk 00:00:06]} {[%emt 00:00:03]} Ke6 {[%clk 00:00:37]} {[%emt 00:00:02]} 40.
hxg5 {[%clk 00:00:06]} {[%emt 00:00:02]} hxg5 {[%clk 00:00:38]} 41. Kh2 {[%clk
00:00:04]} {[%emt 00:00:04]} Kd5 {[%clk 00:00:38]} {[%emt 00:00:02]} 42. b4
{[%clk 00:00:03]} {[%emt 00:00:03]} Kc6 {[%clk 00:00:39]} {[%emt 00:00:02]} 43.
Na2 {[%clk 00:00:04]} Kd5 {[%clk 00:00:39]} 44. Kg3 {[%clk 00:00:05]} 1/2-1/2

[Event "Nordstansblixten 2025"]
[Site "Nordstan, Göteborg, Sweden"]
[Date "2025.05.10"]
[Round "5.3"]
[White "Wellevit, Tomas"]
[Black "Bergdahl, Daniel"]
[Result "1/2-1/2"]
[TimeControl "3 minutes + 2 seconds per move from move one"]
[WhiteFideId "1731963"]
[BlackFideId "1780921"]
[WhiteElo "2131"]
[BlackElo "1855"]

1. e4 {[%clk 00:03:02]} c6 {[%clk 00:03:03]} 2. d4 {[%clk 00:03:05]} {[%emt
00:00:01]} d5 {[%clk 00:03:05]} 3. Nd2 {[%clk 00:03:05]} {[%emt 00:00:03]} dxe4
{[%clk 00:03:06]} 4. Nxe4 {[%clk 00:03:06]} Nf6 {[%clk 00:03:07]} 5. Ng3 {[%clk
00:03:07]} c5 {[%clk 00:03:07]} {[%emt 00:00:02]} 6. Nf3 {[%clk 00:03:07]}
{[%emt 00:00:01]} Nc6 {[%clk 00:03:09]} 7. Be3 {[%clk 00:02:58]} {[%emt
00:00:11]} cxd4 {[%clk 00:03:09]} {[%emt 00:00:02]} 8. Nxd4 {[%clk 00:02:59]}
Bd7 {[%clk 00:03:11]} 9. Qd2 {[%clk 00:02:52]} {[%emt 00:00:09]} g6 {[%clk
00:02:47]} {[%emt 00:00:25]} 10. Be2 {[%clk 00:02:50]} {[%emt 00:00:04]} Bg7
{[%clk 00:02:47]} {[%emt 00:00:02]} 11. O-O {[%clk 00:02:50]} {[%emt 00:00:02]}
O-O {[%clk 00:02:48]} {[%emt 00:00:02]} 12. c3 {[%clk 00:02:51]} a6 {[%clk
00:02:46]} {[%emt 00:00:04]} 13. Bh6 {[%clk 00:02:50]} {[%emt 00:00:03]} Nxd4
{[%clk 00:02:35]} {[%emt 00:00:12]} 14. cxd4 {[%clk 00:02:50]} {[%emt
00:00:03]} Bc6 {[%clk 00:02:29]} {[%emt 00:00:08]} 15. Bxg7 {[%clk 00:02:49]}
{[%emt 00:00:02]} Kxg7 {[%clk 00:02:29]} {[%emt 00:00:01]} 16. Qg5 {[%emt
00:00:05]} Qd5 {[%emt 00:00:17]} 17. Qxd5 {[%clk 00:02:48]} Bxd5 {[%clk
00:02:14]} {[%emt 00:00:03]} 18. f3 {[%clk 00:02:30]} {[%emt 00:00:19]} Rac8
{[%clk 00:02:12]} {[%emt 00:00:04]} 19. Bd3 {[%clk 00:02:21]} {[%emt 00:00:11]}
Rfd8 {[%clk 00:02:07]} {[%emt 00:00:07]} 20. Rfd1 {[%clk 00:02:21]} {[%emt
00:00:02]} b5 {[%clk 00:02:00]} {[%emt 00:00:08]} 21. a4 {[%clk 00:01:59]}
{[%emt 00:00:24]} Bb3 {[%clk 00:01:54]} {[%emt 00:00:08]} 22. Re1 {[%clk
00:01:55]} {[%emt 00:00:07]} Bxa4 {[%clk 00:01:41]} {[%emt 00:00:14]} 23. Rxe7
{[%clk 00:01:47]} {[%emt 00:00:09]} Rxd4 {[%clk 00:01:42]} {[%emt 00:00:01]} 24.
Bf1 {[%clk 00:01:38]} {[%emt 00:00:12]} Rc2 {[%clk 00:01:37]} {[%emt 00:00:06]}
25. b3 {[%clk 00:01:34]} {[%emt 00:00:06]} Bxb3 {[%clk 00:01:32]} {[%emt
00:00:07]} 26. Rxa6 {[%clk 00:01:35]} Rdd2 {[%clk 00:01:16]} {[%emt 00:00:16]}
27. Rb7 {[%clk 00:01:06]} {[%emt 00:00:32]} Nd5 {[%clk 00:00:42]} {[%emt
00:00:36]} 28. Ne4 {[%clk 00:01:05]} {[%emt 00:00:03]} Rd1 {[%clk 00:00:42]}
{[%emt 00:00:03]} 29. Rd6 {[%clk 00:00:41]} {[%emt 00:00:26]} Rcc1 {[%clk
00:00:29]} {[%emt 00:00:15]} 30. Ng3 {[%clk 00:00:41]} {[%emt 00:00:02]} Ne3
{[%clk 00:00:27]} {[%emt 00:00:04]} 31. Rxd1 {[%clk 00:00:42]} {[%emt
00:00:01]} Rxd1 {[%clk 00:00:28]} {[%emt 00:00:02]} 32. Kf2 {[%clk 00:00:40]}
{[%emt 00:00:03]} Nxf1 {[%clk 00:00:28]} {[%emt 00:00:02]} 33. Nxf1 {[%clk
00:00:41]} Bc4 {[%clk 00:00:29]} {[%emt 00:00:02]} 34. Ne3 {[%clk 00:00:42]}
{[%emt 00:00:01]} Rd2+ {[%clk 00:00:27]} {[%emt 00:00:03]} 35. Kg3 {[%clk
00:00:43]} {[%emt 00:00:01]} Bd3 {[%clk 00:00:22]} {[%emt 00:00:07]} 36. Nd5
{[%clk 00:00:38]} {[%emt 00:00:08]} Bf1 {[%clk 00:00:15]} {[%emt 00:00:08]} 37.
Nf4 {[%clk 00:00:27]} {[%emt 00:00:13]} Bc4 {[%clk 00:00:13]} {[%emt 00:00:04]}
38. h4 {[%clk 00:00:27]} {[%emt 00:00:02]} Rd4 {[%clk 00:00:13]} {[%emt
00:00:03]} 39. Nh3 {[%clk 00:00:23]} {[%emt 00:00:05]} Be6 {[%clk 00:00:12]}
{[%emt 00:00:03]} 40. Rxb5 {[%clk 00:00:23]} {[%emt 00:00:02]} Bxh3 {[%clk
00:00:12]} {[%emt 00:00:02]} 41. Kxh3 {[%clk 00:00:24]} 1/2-1/2

[Event "Nordstansblixten 2025"]
[Site "Nordstan, Göteborg, Sweden"]
[Date "2025.05.10"]
[Round "5.4"]
[White "Karlsson, Stefan"]
[Black "Madevan Vaishnavi, Yaashvan"]
[Result "1-0"]
[TimeControl "3 minutes + 2 seconds per move from move one"]
[WhiteFideId "1771183"]
[BlackFideId "1772180"]
[WhiteElo "2128"]
[BlackElo "1717"]

1. d3 {[%clk 00:03:01]} {[%emt 00:00:02]} c5 {[%clk 00:02:56]} {[%emt
00:00:08]} 2. Nd2 {[%clk 00:03:01]} {[%emt 00:00:03]} d5 {[%clk 00:02:57]}
{[%emt 00:00:01]} 3. Ngf3 {[%clk 00:03:01]} {[%emt 00:00:02]} Nf6 {[%clk
00:02:58]} 4. g3 {[%clk 00:03:01]} {[%emt 00:00:02]} Nc6 {[%clk 00:02:57]}
{[%emt 00:00:03]} 5. Bg2 {[%clk 00:03:02]} e6 {[%clk 00:02:58]} {[%emt
00:00:01]} 6. O-O {[%clk 00:03:02]} {[%emt 00:00:02]} Bd6 {[%clk 00:02:59]}
{[%emt 00:00:02]} 7. e4 {[%clk 00:02:56]} {[%emt 00:00:07]} O-O {[%clk
00:02:58]} {[%emt 00:00:03]} 8. Re1 {[%clk 00:02:52]} {[%emt 00:00:06]} dxe4
{[%clk 00:02:52]} {[%emt 00:00:08]} 9. dxe4 {[%clk 00:02:50]} {[%emt 00:00:03]}
Qc7 {[%clk 00:02:44]} {[%emt 00:00:08]} 10. Nc4 {[%clk 00:02:44]} {[%emt
00:00:10]} Rd8 {[%clk 00:02:36]} {[%emt 00:00:11]} 11. Nxd6 {[%clk 00:02:41]}
{[%emt 00:00:05]} Rxd6 {[%clk 00:02:35]} {[%emt 00:00:02]} 12. Qe2 {[%clk
00:02:23]} {[%emt 00:00:19]} e5 {[%clk 00:02:22]} {[%emt 00:00:16]} 13. c3
{[%clk 00:01:44]} {[%emt 00:00:41]} b6 {[%clk 00:02:02]} {[%emt 00:00:23]} 14.
Nd2 {[%clk 00:01:14]} {[%emt 00:00:31]} Be6 {[%clk 00:01:45]} {[%emt 00:00:19]}
15. Nc4 {[%clk 00:01:11]} {[%emt 00:00:04]} Bxc4 {[%clk 00:01:43]} {[%emt
00:00:05]} 16. Qxc4 {[%clk 00:01:12]} Rad8 {[%clk 00:01:43]} {[%emt 00:00:02]}
17. Be3 {[%clk 00:00:49]} {[%emt 00:00:24]} Ng4 {[%clk 00:01:32]} {[%emt
00:00:14]} 18. Bg5 {[%clk 00:00:48]} {[%emt 00:00:03]} R8d7 {[%clk 00:01:12]}
{[%emt 00:00:22]} 19. Bh3 {[%clk 00:00:46]} {[%emt 00:00:04]} h5 {[%clk
00:00:40]} {[%emt 00:00:34]} 20. f3 {[%clk 00:00:44]} {[%emt 00:00:04]} Na5
{[%clk 00:00:27]} {[%emt 00:00:15]} 21. Qe2 {[%clk 00:00:29]} {[%emt 00:00:15]}
f6 {[%clk 00:00:20]} {[%emt 00:00:11]} 22. Bc1 {[%clk 00:00:22]} {[%emt
00:00:08]} Nh6 {[%clk 00:00:03]} {[%emt 00:00:20]} 23. Bxd7 {[%clk 00:00:23]}
{[%emt 00:00:02]} Qxd7 {[%clk 00:00:04]} {[%emt 00:00:01]} 24. Bxh6 {[%clk
00:00:18]} {[%emt 00:00:06]} gxh6 {[%clk 00:00:04]} {[%emt 00:00:02]} 25. Rad1
{[%clk 00:00:18]} {[%emt 00:00:01]} 1-0

[Event "Nordstansblixten 2025"]
[Site "Nordstan, Göteborg, Sweden"]
[Date "2025.05.10"]
[Round "5.5"]
[White "Bergdahl, Martin"]
[Black "Mohammed, Safian Haj"]
[Result "1/2-1/2"]
[TimeControl "3 minutes + 2 seconds per move from move one"]
[WhiteFideId "1782231"]
[BlackFideId "1729276"]
[WhiteElo "1867"]
[BlackElo "1874"]

1. e4 {[%clk 00:03:03]} c5 {[%clk 00:03:03]} 2. Nf3 {[%clk 00:03:04]} {[%emt
00:00:02]} d6 {[%clk 00:03:02]} {[%emt 00:00:03]} 3. c3 {[%clk 00:03:05]} Nf6
{[%clk 00:02:58]} {[%emt 00:00:05]} 4. Bc4 {[%clk 00:03:06]} {[%emt 00:00:02]}
Nc6 {[%clk 00:02:57]} {[%emt 00:00:03]} 5. d3 {[%clk 00:03:07]} {[%emt
00:00:01]} a6 {[%clk 00:02:52]} {[%emt 00:00:07]} 6. O-O {[%clk 00:03:06]}
{[%emt 00:00:02]} b5 {[%clk 00:02:53]} {[%emt 00:00:02]} 7. Bb3 {[%clk
00:03:07]} Bg4 {[%clk 00:02:47]} {[%emt 00:00:07]} 8. Be3 {[%clk 00:01:52]}
{[%emt 00:01:18]} e6 {[%clk 00:02:45]} {[%emt 00:00:04]} 9. Nbd2 {[%clk
00:01:42]} {[%emt 00:00:12]} Be7 {[%clk 00:02:45]} {[%emt 00:00:02]} 10. Rc1
{[%clk 00:01:41]} {[%emt 00:00:04]} O-O {[%clk 00:02:45]} {[%emt 00:00:02]} 11.
h3 {[%clk 00:01:42]} Bh5 {[%clk 00:02:46]} 12. d4 {[%clk 00:01:40]} {[%emt
00:00:05]} cxd4 {[%clk 00:02:42]} {[%emt 00:00:05]} 13. cxd4 {[%clk 00:01:41]}
Na5 {[%clk 00:02:43]} {[%emt 00:00:01]} 14. Bc2 {[%clk 00:00:54]} {[%emt
00:00:49]} Rc8 {[%clk 00:02:40]} {[%emt 00:00:06]} 15. Bb1 {[%clk 00:00:40]}
{[%emt 00:00:16]} Rxc1 {[%clk 00:02:32]} 16. Qxc1 {[%clk 00:00:41]} {[%emt
00:00:10]} Qd7 {[%clk 00:02:26]} {[%emt 00:00:08]} 17. e5 {[%clk 00:00:32]}
{[%emt 00:00:11]} dxe5 {[%clk 00:02:21]} {[%emt 00:00:07]} 18. Nxe5 {[%clk
00:00:29]} {[%emt 00:00:04]} Qb7 {[%clk 00:02:07]} {[%emt 00:00:14]} 19. Qc2
{[%clk 00:00:25]} {[%emt 00:00:09]} Rc8 {[%clk 00:02:06]} {[%emt 00:00:03]} 20.
Qd3 {[%clk 00:00:17]} {[%emt 00:00:15]} Nc6 {[%clk 00:02:02]} 21. Nxc6 {[%clk
00:00:17]} {[%emt 00:00:02]} Rxc6 {[%clk 00:02:01]} {[%emt 00:00:03]} 22. Ne4
{[%clk 00:00:15]} {[%emt 00:00:04]} Bg6 {[%clk 00:02:01]} {[%emt 00:00:02]} 23.
Nxf6+ {[%clk 00:00:15]} {[%emt 00:00:02]} Bxf6 {[%clk 00:02:01]} {[%emt
00:00:02]} 24. Qe2 {[%clk 00:00:14]} {[%emt 00:00:02]} Qc8 {[%clk 00:01:56]}
{[%emt 00:00:07]} 25. Bxg6 {[%clk 00:00:14]} {[%emt 00:00:02]} hxg6 {[%clk
00:01:58]} 26. Qd3 {[%clk 00:00:11]} {[%emt 00:00:04]} Rc2 {[%clk 00:01:57]}
{[%emt 00:00:04]} 27. Rb1 {[%clk 00:00:10]} {[%emt 00:00:04]} Qc4 {[%clk
00:01:55]} {[%emt 00:00:04]} 28. Qxc4 {[%clk 00:00:10]} {[%emt 00:00:01]} Rxc4
{[%clk 00:01:53]} {[%emt 00:00:04]} 29. Rd1 {[%clk 00:00:07]} {[%emt 00:00:04]}
Rc2 {[%clk 00:01:54]} {[%emt 00:00:02]} 30. Rb1 {[%clk 00:00:09]} Rc4 {[%clk
00:01:52]} {[%emt 00:00:04]} 31. Rd1 {[%clk 00:00:10]} Rc2 {[%clk 00:01:52]}
{[%emt 00:00:01]} 32. Rb1 {[%clk 00:00:12]} 1/2-1/2

[Event "Nordstansblixten 2025"]
[Site "Nordstan, Göteborg, Sweden"]
[Date "2025.05.10"]
[Round "5.6"]
[White "Buzleta, Patrik"]
[Black "Ring, Sami"]
[Result "1-0"]
[TimeControl "3 minutes + 2 seconds per move from move one"]
[WhiteFideId "1755463"]
[BlackFideId "1785869"]
[WhiteElo "1950"]
[BlackElo "1712"]

1. Nf3 {[%clk 00:03:03]} d5 {[%clk 00:03:03]} 2. e3 {[%clk 00:03:04]} {[%emt
00:00:01]} Nf6 {[%clk 00:03:04]} {[%emt 00:00:01]} 3. b3 {[%clk 00:03:05]} b6
{[%clk 00:03:04]} {[%emt 00:00:01]} 4. Bb2 {[%clk 00:03:06]} e6 {[%clk
00:03:05]} {[%emt 00:00:02]} 5. h3 {[%clk 00:03:07]} Be7 {[%clk 00:03:06]}
{[%emt 00:00:01]} 6. d3 {[%clk 00:03:08]} Bb7 {[%clk 00:03:07]} 7. Nbd2 {[%clk
00:03:09]} Nbd7 {[%clk 00:03:08]} {[%emt 00:00:01]} 8. a3 {[%clk 00:03:10]}
{[%emt 00:00:01]} c5 {[%clk 00:03:09]} {[%emt 00:00:02]} 9. Qe2 {[%clk
00:03:11]} O-O {[%clk 00:03:09]} {[%emt 00:00:02]} 10. g4 {[%clk 00:03:12]} Rc8
{[%clk 00:03:08]} {[%emt 00:00:03]} 11. g5 {[%clk 00:03:13]} Ne8 {[%clk
00:03:09]} {[%emt 00:00:01]} 12. Bg2 {[%clk 00:03:14]} Bxg5 {[%clk 00:03:05]}
{[%emt 00:00:07]} 13. Nxg5 {[%clk 00:03:15]} Qxg5 {[%clk 00:03:05]} {[%emt
00:00:02]} 14. Rg1 {[%clk 00:03:16]} Nef6 {[%clk 00:02:45]} {[%emt 00:00:23]}
15. O-O-O {[%clk 00:03:14]} {[%emt 00:00:03]} Qh6 {[%clk 00:02:38]} {[%emt
00:00:08]} 16. Kb1 {[%clk 00:03:10]} {[%emt 00:00:07]} a5 {[%clk 00:02:35]}
{[%emt 00:00:05]} 17. c4 {[%clk 00:03:08]} {[%emt 00:00:05]} Ba6 {[%clk
00:02:17]} {[%emt 00:00:19]} 18. f4 {[%clk 00:03:04]} {[%emt 00:00:06]} dxc4
{[%clk 00:02:10]} {[%emt 00:00:10]} 19. dxc4 {[%clk 00:03:05]} Rfd8 {[%clk
00:02:04]} {[%emt 00:00:07]} 20. Ne4 {[%clk 00:02:50]} {[%emt 00:00:16]} Nxe4
{[%clk 00:01:18]} {[%emt 00:00:49]} 21. Bxe4 {[%clk 00:02:51]} Nf6 {[%clk
00:01:18]} {[%emt 00:00:02]} 22. Bc2 {[%clk 00:02:32]} {[%emt 00:00:21]} Rxd1+
{[%clk 00:01:08]} {[%emt 00:00:12]} 23. Qxd1 {[%clk 00:02:33]} Qh4 {[%clk
00:00:13]} {[%emt 00:00:57]} 24. Qd3 {[%clk 00:02:15]} {[%emt 00:00:21]} 1-0